bitfinex/quotes_ETHUSD_20251206
["timestamp","ask_amount","ask_price","bid_price","bid_amount"]
[1765015342943,0.9243,3031.5,3031.4,0.001]
[1765015344268,0.4574,3031.5,3031.4,0.001]
[1765015344672,0.9243,3031.5,3031.4,0.001]
[1765015350166,1.12922178,3031.5,3031.4,0.001]
[1765015351284,1.26130451,3031.5,3031.4,0.001]
[1765015353798,4.56000152,3031.5,3031.4,0.001]
[1765015355102,5.18000152,3031.5,3031.4,0.001]
[1765015355398,5.58550552,3031.5,3031.4,0.001]
[1765015355984,6.41109963,3031.5,3031.4,0.001]
[1765015358712,6.41109963,3031.5,3030.6,0.001]
[1765015358713,0.505504,3030.8,3030.6,0.001]
[1765015358888,1.573804,3030.8,3030.6,0.001]
[1765015359091,2.061904,3030.8,3030.6,0.001]
[1765015359277,2.19402817,3030.8,3030.6,0.001]
[1765015359592,2.91962228,3030.8,3030.6,0.001]
[1765015359791,3.32086801,3030.8,3030.6,0.001]
[1765015360119,3.42086801,3030.8,3030.6,0.001]
[1765015360677,6.72032689,3030.8,3030.6,0.001]
[1765015360887,6.62032689,3030.8,3030.6,0.001]
[1765015361619,6.00032689,3030.8,3030.6,0.001]
[1765015361911,6.52032689,3030.8,3030.6,0.001]
[1765015363081,6.62032689,3030.8,3030.6,0.001]
[1765015363384,6.72032689,3030.8,3030.6,0.001]
[1765015365505,6.62032689,3030.8,3030.6,0.001]
[1765015367212,12.5999823,3030.8,3030.6,0.001]
[1765015370390,6.72032689,3030.8,3030.6,0.001]
[1765015371218,6.20032689,3030.8,3030.6,0.001]
[1765015371513,5.07842289,3030.8,3030.6,0.001]
[1765015371811,5.97292689,3030.8,3030.6,0.001]
[1765015372015,5.48392689,3030.8,3030.6,0.001]
[1765015372217,1.4588739,3030.8,3030.6,0.001]
[1765015372513,0.65212417,3030.8,3030.7,0.3225]
[1765015372715,1.05762817,3030.8,3030.7,0.3225]
[1765015372891,0.53762817,3030.8,3030.7,0.3225]
[1765015373218,1.05762817,3030.8,3030.7,0.3225]
[1765015374590,2.00183504,3030.8,3030.7,0.001]
[1765015374788,2.32433504,3030.8,3030.7,0.001]
[1765015375017,1.83533504,3030.8,3030.7,0.001]
[1765015375224,1.51283504,3030.8,3030.7,0.001]
[1765015376002,0.52,3030.8,3030.7,0.3225]
[1765015376504,1.31533504,3030.9,3030.7,0.3225]
[1765015376703,1.51283504,3030.9,3030.7,0.3225]
[1765015377418,0.99283504,3030.9,3030.8,0.3215]
[1765015378600,0.99283504,3031.0,3030.8,0.3215]
[1765015378804,0.489,3030.9,3030.7,0.001]
[1765015379023,0.99283504,3030.8,3030.7,0.001]
[1765015379224,1.48183504,3030.8,3030.7,0.001]
[1765015379518,2.24971205,3030.8,3030.7,0.001]
[1765015380100,5.54917093,3030.8,3030.7,0.001]
[1765015380304,5.95467493,3030.8,3030.7,0.001]
[1765015381314,6.05467493,3030.8,3030.7,0.001]
[1765015381519,6.15467493,3030.8,3030.7,0.001]
[1765015382021,6.88026904,3030.8,3030.7,0.001]
[1765015383017,6.33929539,3030.8,3030.7,0.001]
[1765015383526,6.81239539,3030.8,3030.7,0.001]
[1765015384402,6.91239539,3030.8,3030.7,0.001]
[1765015385830,5.12470128,3030.8,3030.7,0.001]
[1765015386220,5.61370128,3030.8,3030.7,0.001]
[1765015387129,6.08680128,3030.8,3030.7,0.001]
[1765015388039,1.8252424,3030.8,3030.7,0.3225]
[1765015388240,2.3452424,3030.8,3030.7,0.3225]
[1765015388543,7.33239539,3030.8,3030.7,0.001]
[1765015388718,7.53239539,3030.8,3030.7,0.001]
[1765015393018,7.01239539,3030.8,3030.7,0.001]
[1765015393319,7.53239539,3030.8,3030.7,0.001]
[1765015396352,13.41600401,3030.8,3030.7,0.001]
[1765015401154,12.45390401,3030.8,3030.7,0.001]
[1765015401366,12.45390401,3030.8,3030.7,0.3225]
[1765015401367,1.12496139,3030.8,3030.7,0.3225]
[1765015401528,1.64496139,3030.8,3030.7,0.644]
[1765015401729,2.7760595,3030.8,3030.7,0.644]
[1765015401967,5.94339203,3030.8,3030.7,0.3225]
[1765015402828,5.42339203,3030.8,3030.7,0.3225]
[1765015403553,0.99283504,3030.8,3030.7,0.644]
[1765015404447,0.99283504,3030.8,3030.7,0.3225]
[1765015405028,5.32969657,3030.8,3030.7,0.001]
[1765015405228,5.79329657,3030.8,3030.7,0.001]
[1765015405430,5.32969657,3030.8,3030.7,0.001]
[1765015405730,4.74899392,3030.8,3030.7,0.001]
[1765015405930,4.29229392,3030.8,3030.7,0.001]
[1765015406155,4.74899392,3030.8,3030.7,0.001]
[1765015406657,5.21259392,3030.8,3030.7,0.001]
[1765015406893,12.42730065,3030.8,3030.7,0.001]
[1765015407058,14.48137422,3030.8,3030.7,0.001]
[1765015407254,14.61350712,3030.8,3030.7,0.001]
[1765015409973,13.88791301,3030.8,3030.7,0.001]
[1765015412160,8.7298985,3030.8,3030.7,0.001]
[1765015412568,14.61350712,3030.8,3030.7,0.001]
[1765015413471,13.88791301,3030.8,3030.7,0.001]
[1765015414566,14.61350712,3030.8,3030.7,0.001]
[1765015420773,21.79594012,3030.8,3030.7,0.001]
[1765015421682,17.23042712,3030.8,3030.7,0.001]
[1765015421913,14.61350712,3030.8,3030.7,0.001]
[1765015422285,15.13350712,3030.8,3030.7,0.001]
[1765015424110,14.61350712,3030.8,3030.7,0.001]
[1765015424448,15.13350712,3030.8,3030.7,0.001]
[1765015426720,17.66624412,3030.8,3030.7,0.001]
[1765015427015,15.13350712,3030.8,3030.7,0.001]
[1765015427178,17.91393312,3030.8,3030.7,0.001]
[1765015427580,15.13350712,3030.8,3030.7,0.001]
[1765015428284,14.66990712,3030.8,3030.7,0.001]
[1765015428997,15.16870712,3030.8,3030.7,0.001]
[1765015431437,14.14990712,3030.8,3030.7,0.001]
[1765015431625,13.69320712,3030.8,3030.7,0.001]
[1765015431833,14.21320712,3030.8,3030.7,0.001]
[1765015432243,14.69810712,3030.8,3030.7,0.001]
[1765015432615,15.15140712,3030.8,3030.7,0.001]
[1765015436041,14.69810712,3030.8,3030.7,0.001]
[1765015437049,15.15140712,3030.8,3030.7,0.001]
[1765015438624,14.69810712,3030.8,3030.7,0.001]
[1765015439227,15.15140712,3030.8,3030.7,0.001]
[1765015440548,14.69810712,3030.8,3030.7,0.001]
[1765015440738,15.15140712,3030.8,3030.7,0.001]
[1765015443130,14.69810712,3030.8,3030.7,0.001]
[1765015443453,15.15140712,3030.8,3030.7,0.001]
[1765015444578,14.21320712,3030.8,3030.7,0.001]
[1765015444786,14.69810712,3030.8,3030.7,0.001]
[1765015445452,15.15140712,3030.8,3030.7,0.001]
[1765015449585,14.69810712,3030.8,3030.7,0.001]
[1765015449788,15.19070712,3030.8,3030.7,0.001]
[1765015452402,7.7095985,3030.8,3030.7,0.3225]
[1765015452698,6.17552624,3030.8,3030.7,0.3225]
[1765015453060,6.27552624,3030.8,3030.7,0.3225]
[1765015453592,12.15913486,3030.8,3030.7,0.3225]
[1765015454084,12.15913486,3030.8,3030.7,0.001]
[1765015456972,12.05913486,3030.8,3030.7,0.3225]
[1765015457173,6.17552624,3030.8,3030.7,0.3225]
[1765015458461,8.30004342,3030.8,3030.7,0.3225]
[1765015458795,8.30004342,3030.8,3030.7,0.001]
[1765015460129,8.20004342,3030.8,3030.7,0.001]
[1765015460730,8.20004342,3030.8,3030.7,0.3225]
[1765015461434,8.20004342,3030.8,3030.7,0.001]
[1765015461604,8.76144342,3030.8,3030.7,0.001]
[1765015462023,8.30004342,3030.8,3030.7,0.001]
[1765015465015,8.30004342,3030.8,3030.7,0.3225]
[1765015465338,6.17552624,3030.8,3030.7,0.3225]
[1765015465921,6.27552624,3030.8,3030.7,0.001]
[1765015467519,6.07552624,3030.8,3030.7,0.644]
[1765015467721,6.17552624,3030.8,3030.7,0.644]
[1765015468017,6.17552624,3030.8,3030.7,0.3225]
[1765015470740,6.17552624,3030.8,3030.7,0.001]
[1765015473048,6.73692624,3030.8,3030.7,0.001]
[1765015473949,6.27552624,3030.8,3030.7,0.001]
[1765015475655,8.17308257,3030.8,3030.7,0.001]
[1765015483837,25.65913257,3030.8,3030.7,0.001]
[1765015484173,21.05462957,3030.8,3030.7,0.001]
[1765015484773,19.65036557,3030.8,3030.7,0.001]
[1765015485151,18.65036557,3030.8,3030.7,0.001]
[1765015485842,26.10305257,3030.8,3030.7,0.001]
[1765015486874,28.30305257,3030.8,3030.7,0.001]
[1765015487071,26.10305257,3030.8,3030.7,0.001]
[1765015487280,24.65718257,3030.8,3030.7,0.001]
[1765015487982,38.62908257,3030.8,3030.7,0.001]
[1765015488864,8.62908257,3030.8,3030.7,0.001]
[1765015489066,38.62908257,3030.8,3030.7,0.001]
[1765015490878,34.31041557,3030.8,3030.7,0.001]
[1765015491781,34.08625457,3030.8,3030.7,0.001]
[1765015492276,34.08625457,3030.8,3029.6,0.3225]
[1765015492277,0.2,3030.1,3029.6,0.3225]
[1765015492454,8.21782719,3030.1,3029.6,0.3225]
[1765015492881,8.54032719,3030.1,3029.6,0.3225]
[1765015493783,12.3035483,3030.1,3029.6,0.001]
[1765015496251,21.1758063,3030.1,3029.6,0.001]
[1765015496456,22.61196263,3030.1,3029.6,0.001]
[1765015497992,40.13332363,3030.1,3029.6,0.001]
[1765015498194,38.39893663,3030.1,3029.6,0.001]
[1765015498571,38.39893663,3030.1,3028.4,3.30207009]
[1765015498572,0.72559411,3029.4,3028.4,0.3215]
[1765015498771,0.99283504,3028.5,3028.0,3.3025099]
[1765015499166,0.99283504,3028.5,3028.4,0.3215]
[1765015499568,1.09283504,3028.5,3028.4,0.643]
[1765015499867,0.99283504,3028.5,3028.4,0.643]
[1765015500062,4.2947997,3028.5,3028.4,0.643]
[1765015500275,4.7003037,3028.5,3028.4,0.643]
[1765015500688,6.41762842,3028.5,3028.4,0.643]
[1765015500902,0.505504,3028.4,3027.9,0.13131233]
[1765015501095,0.521,3028.3,3027.9,0.13131233]
[1765015501306,0.99283504,3028.0,3027.9,0.13131233]
[1765015501683,0.99283504,3028.0,3027.9,0.45281233]
[1765015501995,0.521,3028.2,3027.9,4.07690999]
[1765015502169,0.521,3028.2,3028.1,0.3215]
[1765015502669,0.521,3028.2,3028.1,0.643]
[1765015503179,4.2947997,3028.5,3028.1,0.643]
[1765015503180,0.99283504,3028.3,3028.1,0.643]
[1765015503374,0.99283504,3028.3,3028.2,0.3215]
[1765015503587,0.99283504,3028.3,3028.2,0.643]
[1765015505009,0.99203504,3028.3,3028.2,0.3215]
[1765015505378,0.99203504,3028.3,3028.2,0.643]
[1765015507093,4.29421778,3028.3,3028.2,0.3215]
[1765015507500,4.39421778,3028.3,3028.2,0.3215]
[1765015507797,1.31353504,3028.3,3028.2,0.643]
[1765015508691,4.61571778,3028.3,3028.2,0.643]
[1765015509594,1.31353504,3028.3,3028.2,0.643]
[1765015510215,1.83453504,3028.3,3028.2,0.643]
[1765015511212,1.51303504,3028.3,3028.2,0.643]
[1765015512599,2.15603504,3028.3,3028.2,0.643]
[1765015513630,0.505504,3028.2,3027.9,0.00761233]
[1765015513944,1.54533504,3028.0,3027.9,0.00761233]
[1765015514094,1.95083904,3028.0,3027.9,0.00761233]
[1765015514298,1.49833904,3028.0,3027.9,0.00761233]
[1765015515116,1.95083904,3028.0,3027.9,0.00761233]
[1765015515323,11.5281162,3028.0,3027.9,0.00761233]
[1765015515637,11.9913162,3028.0,3027.9,0.00761233]
[1765015516635,11.5281162,3028.0,3027.9,0.00761233]
[1765015517430,11.9913162,3028.0,3027.9,0.00761233]
[1765015518513,12.00362449,3028.0,3027.9,0.00761233]
[1765015522339,12.13589984,3028.0,3027.9,0.00761233]
[1765015522852,21.04134784,3028.0,3027.9,0.00761233]
[1765015524323,21.76694195,3028.0,3027.9,0.00761233]
[1765015525050,3.95578525,3028.0,3027.9,0.32911233]
[1765015525348,0.1,3028.1,3027.9,0.32911233]
[1765015525349,3.30242628,3028.1,3027.9,0.32911233]
[1765015525525,3.70793028,3028.1,3028.0,0.3215]
[1765015525724,5.28363672,3028.1,3028.0,0.3215]
[1765015525947,0.85011233,3028.1,3028.0,0.3215]
[1765015526252,0.521,3028.1,3028.0,0.643]
[1765015527454,0.621,3028.1,3028.0,0.3215]
[1765015527652,0.521,3028.1,3028.0,0.3215]
[1765015527834,0.521,3028.1,3028.0,0.643]
[1765015528859,0.521,3028.1,3028.0,0.3215]
[1765015529269,0.521,3028.1,3028.0,0.643]
[1765015530065,0.521,3028.1,3028.0,0.3215]
[1765015530066,10.12404221,3028.1,3028.0,0.3215]
[1765015530457,6.82164137,3028.1,3028.0,0.3215]
[1765015530661,0.926504,3028.1,3028.0,0.3215]
[1765015531033,0.926504,3028.1,3028.0,0.643]
[1765015531868,0.521,3028.1,3028.0,0.643]
[1765015532074,1.51383504,3028.2,3028.0,0.643]
[1765015532275,1.51383504,3028.2,3028.1,0.7677]
[1765015534366,1.51383504,3028.2,3028.1,0.4462]
[1765015534986,4.81612683,3028.2,3028.1,0.4462]
[1765015538095,3.70792748,3028.1,3027.9,0.00761233]
[1765015538386,0.99283504,3028.0,3027.9,0.00761233]
[1765015538960,0.99283504,3028.0,3027.9,0.32911233]
[1765015542597,0.99283504,3028.0,3027.9,0.65061233]
[1765015543205,0.99283504,3028.0,3027.9,0.32911233]
[1765015543979,0.99283504,3028.0,3027.9,0.65061233]
[1765015544779,0.99283504,3028.0,3027.9,0.32911233]
[1765015545707,4.29534494,3028.0,3027.9,0.32911233]
[1765015546680,0.99283504,3028.0,3027.9,0.32911233]
[1765015550534,4.29534494,3028.0,3027.9,0.32911233]
[1765015551610,0.99283504,3028.0,3027.9,0.32911233]
[1765015553734,0.99283504,3028.0,3027.9,0.65061233]
[1765015554140,0.99283504,3028.0,3027.9,0.32911233]
[1765015556046,0.99283504,3028.0,3027.9,0.65061233]
[1765015557212,0.99283504,3028.0,3027.9,0.32911233]
[1765015565863,0.99283504,3028.0,3027.9,0.65061233]
[1765015566456,1.51383504,3028.2,3027.9,3.9532313]
[1765015566788,1.51383504,3028.2,3028.1,0.3215]
[1765015566789,0.99283504,3028.2,3028.1,0.3215]
[1765015567765,0.99283504,3028.2,3028.1,0.643]
[1765015569076,0.002,3028.3,3028.1,0.643]
[1765015569244,0.002,3028.3,3028.2,0.643]
[1765015571291,0.99483504,3028.3,3028.2,0.643]
[1765015571494,0.99483504,3028.3,3028.2,0.3215]
[1765015574264,0.002,3028.3,3028.2,4.33983121]
[1765015576557,0.002,3028.3,3028.2,4.86083121]
[1765015578794,0.002,3028.3,3028.2,5.61944823]
[1765015580483,0.002,3028.3,3028.2,11.50635133]
[1765015580682,0.002,3028.3,3028.2,11.47332842]
[1765015581880,0.002,3028.3,3028.2,28.66756942]
[1765015582094,0.002,3028.7,3028.3,0.72559411]
[1765015582291,0.002,3028.7,3028.6,7.92683225]
[1765015582506,0.002,3028.7,3028.6,8.44783225]
[1765015582796,0.002,3028.7,3028.6,8.76933225]
[1765015584122,0.002,3028.7,3028.6,12.07118789]
[1765015584981,0.002,3029.0,3028.9,6.61249721]
[1765015585181,0.002,3029.0,3028.9,7.98930634]
[1765015585890,0.002,3029.0,3028.9,8.51030634]
[1765015586207,0.002,3029.0,3028.9,11.81183494]
[1765015589121,0.002,3029.0,3028.9,11.29083494]
[1765015589293,0.002,3029.0,3028.9,11.81183494]
[1765015592619,0.002,3029.0,3028.9,5.08243184]
[1765015592991,0.002,3029.0,3028.9,5.60343184]
[1765015595499,0.002,3029.0,3028.9,5.92493184]
[1765015595838,0.002,3029.0,3028.9,11.81183494]
[1765015598700,0.002,3029.0,3028.9,11.49033494]
[1765015605219,0.002,3029.0,3028.9,11.81183494]
[1765015605951,0.002,3029.0,3028.9,11.49033494]
[1765015606327,0.002,3029.0,3028.9,11.81183494]
[1765015608451,0.002,3029.0,3028.9,5.60343184]
[1765015609526,0.002,3029.0,3028.9,5.28193184]
[1765015615074,0.9626,3029.0,3028.9,5.28193184]
[1765015615576,0.4842,3029.0,3028.9,5.28193184]
[1765015616266,0.9626,3029.0,3028.9,5.28193184]
[1765015616468,0.9626,3029.0,3028.9,3.3015286]
[1765015617950,0.9626,3029.0,3028.6,7.85130539]
[1765015618260,0.4822,3028.8,3028.6,7.85130539]
[1765015618760,0.9606,3028.8,3028.6,7.85130539]
[1765015619268,0.002,3029.0,3028.7,0.3215]
[1765015619469,0.002,3029.0,3028.8,1.60039961]
[1765015621081,0.002,3029.0,3028.9,3.6230286]
[1765015621579,0.002,3029.0,3028.9,3.65604388]
[1765015621877,0.002,3029.0,3028.9,3.97754388]
[1765015622183,0.002,3029.0,3028.9,3.65604388]
[1765015622392,0.002,3029.0,3028.9,5.16767632]
[1765015622775,0.002,3029.0,3028.9,5.13466104]
[1765015622984,0.002,3029.0,3028.9,5.45616104]
[1765015624004,0.002,3029.0,3028.9,5.13466104]
[1765015630577,0.002,3029.0,3028.9,4.81316104]
[1765015631787,0.002,3029.0,3028.9,5.13466104]
[1765015634302,0.002,3029.0,3028.9,5.58896104]
[1765015636013,0.941,3029.0,3028.7,3.84]
[1765015636230,0.4847,3028.8,3028.7,3.84]
[1765015636717,0.939,3028.8,3028.7,3.84]
[1765015636899,0.939,3028.8,3028.7,7.14174662]
[1765015637502,0.939,3028.8,3028.6,0.001]
[1765015637698,1.93183504,3028.7,3028.6,0.001]
[1765015638880,0.939,3028.7,3028.6,0.001]
[1765015639124,1.93183504,3028.7,3028.6,0.001]
[1765015640032,0.939,3028.7,3028.6,0.001]
[1765015646531,0.4847,3028.7,3028.6,0.001]
[1765015646921,0.939,3028.7,3028.6,0.001]
[1765015654933,1.56233668,3028.7,3028.6,0.001]
[1765015655363,1.46233668,3028.7,3028.6,0.001]
[1765015657674,0.939,3028.7,3028.6,0.001]
[1765015661378,0.941,3028.7,3028.6,0.001]
[1765015665001,0.4867,3028.7,3028.6,0.001]
[1765015665173,0.002,3028.7,3028.6,0.001]
[1765015665768,0.4804,3028.7,3028.6,0.001]
[1765015665971,0.9322,3028.7,3028.6,0.001]
[1765015669398,0.002,3028.7,3028.6,0.001]
[1765015670095,0.4804,3028.7,3028.6,0.001]
[1765015672492,0.002,3028.7,3028.6,0.001]
[1765015672694,0.002,3028.7,3028.6,0.3225]
[1765015673599,0.9322,3028.7,3028.6,0.001]
[1765015683181,0.4804,3028.7,3028.6,0.001]
[1765015683511,0.002,3028.7,3028.6,0.001]
[1765015683907,0.4987,3028.7,3028.6,0.001]
[1765015684117,0.9516,3028.7,3028.6,0.001]
[1765015685513,0.002,3028.7,3028.6,0.001]
[1765015686317,0.4987,3028.7,3028.6,0.001]
[1765015686521,0.9516,3028.7,3028.6,0.001]
[1765015688623,0.4987,3028.7,3028.6,0.001]
[1765015688841,0.002,3028.7,3028.6,0.001]
[1765015689124,0.002,3028.7,3028.6,0.3225]
[1765015690224,0.002,3028.7,3028.6,3.62435564]
[1765015691032,0.002,3028.7,3028.6,4.63858812]
[1765015691732,0.002,3028.7,3028.6,3.99558812]
[1765015692114,0.4602,3028.7,3028.6,3.99558812]
[1765015692712,0.002,3028.7,3028.6,4.31708812]
[1765015701058,0.002,3028.7,3028.6,3.99558812]
[1765015701264,0.4602,3028.7,3028.6,3.99558812]
[1765015701561,0.9507,3028.7,3028.6,3.30285564]
[1765015702561,0.9507,3028.7,3028.6,0.001]
[1765015702860,0.002,3028.7,3028.6,0.3225]
[1765015703253,0.002,3028.7,3028.6,0.644]
[1765015704954,0.002,3028.7,3028.6,3.94585564]
[1765015705338,0.002,3028.7,3028.6,10.98739244]
[1765015707664,0.002,3028.7,3028.6,11.71298655]
[1765015711574,0.002,3028.7,3028.6,11.84513997]
[1765015720976,0.002,3028.7,3028.6,15.68513997]
[1765015722052,0.002,3028.7,3028.6,33.06236797]
[1765015722375,0.002,3028.7,3028.6,29.48510897]
[1765015722771,0.002,3028.7,3028.6,27.15069697]
[1765015722958,0.002,3028.7,3028.6,30.20728997]
[1765015723160,0.002,3028.7,3028.6,29.76820297]
[1765015723974,0.002,3028.7,3028.6,33.77777197]
[1765015724166,0.002,3028.7,3028.6,31.77777197]
[1765015724985,0.002,3028.7,3028.6,31.31487497]
[1765015725186,0.002,3029.0,3028.9,0.72559411]
[1765015725364,0.002,3029.0,3028.9,19.90908187]
[1765015725565,0.002,3029.0,3028.9,20.19756659]
[1765015725767,0.002,3029.0,3028.9,19.33050211]
[1765015726089,0.002,3029.0,3028.9,18.64761111]
[1765015726256,0.002,3029.0,3028.9,24.02615688]
[1765015726896,0.4548,3029.0,3028.9,14.9881124]
[1765015727111,0.9397,3029.0,3028.6,3.30277931]
[1765015727257,0.9397,3029.0,3028.6,0.001]
[1765015727258,0.4528,3028.7,3028.6,0.001]
[1765015727587,0.4528,3028.7,3028.6,3.30285564]
[1765015727766,0.9377,3028.7,3028.6,3.30285564]
[1765015728291,0.9377,3028.7,3028.6,0.001]
[1765015728801,0.4528,3028.7,3028.6,5.88816344]
[1765015729095,0.4528,3028.7,3028.6,7.13749413]
[1765015729680,0.4528,3028.7,3028.6,5.88816344]
[1765015729983,0.002,3029.0,3028.6,5.88816344]
[1765015730219,0.002,3029.0,3028.9,5.88716344]
[1765015730504,0.002,3029.0,3028.9,9.51019204]
[1765015731709,0.002,3029.0,3028.9,10.23578615]
[1765015731880,0.002,3029.0,3028.9,11.77306355]
[1765015732088,0.002,3029.0,3028.9,12.09456355]
[1765015732291,0.002,3029.0,3028.9,11.77306355]
[1765015732501,0.002,3029.0,3028.9,12.09456355]
[1765015732678,0.002,3029.0,3028.9,11.77306355]
[1765015734711,0.002,3029.0,3028.9,12.09456355]
[1765015737385,0.002,3029.0,3028.9,4.02712271]
[1765015737386,0.9229,3029.0,3028.9,4.02712271]
[1765015737607,0.9229,3029.0,3028.9,3.3015286]
[1765015740016,0.9229,3029.0,3028.8,3.30162725]
[1765015740240,0.4591,3028.9,3028.8,3.30162725]
[1765015740443,0.9209,3028.9,3028.8,3.30162725]
[1765015740942,0.4618,3028.9,3028.8,9.18879069]
[1765015741650,0.002,3029.0,3028.8,11.20195473]
[1765015741816,0.002,3029.0,3028.9,2.03992915]
[1765015742346,0.002,3029.0,3028.9,5.34145775]
[1765015745479,0.002,3029.0,3028.9,5.66295775]
[1765015746272,0.002,3029.0,3028.9,5.34145775]
[1765015746575,0.002,3029.0,3028.9,7.02252309]
[1765015747945,0.002,3029.0,3028.9,11.18402309]
[1765015748639,0.002,3029.0,3028.9,11.31615905]
[1765015750576,0.002,3029.0,3028.9,10.67315905]
[1765015750875,0.002,3029.0,3028.9,11.51565905]
[1765015751048,0.002,3029.0,3028.9,11.83715905]
[1765015751371,0.002,3029.0,3028.9,36.27395705]
[1765015751563,0.002,3029.0,3028.9,33.98802905]
[1765015751766,0.002,3029.0,3028.9,23.55014105]
[1765015751944,0.002,3029.0,3028.9,17.13898105]
[1765015752343,0.002,3029.0,3028.9,17.20930205]
[1765015752540,0.002,3029.0,3028.9,17.53080205]
[1765015753280,0.002,3029.0,3028.9,19.64745205]
[1765015753487,0.002,3029.0,3028.9,17.13898105]
[1765015753977,0.4884,3029.0,3028.9,9.68032401]
[1765015754140,0.002,3029.0,3028.9,11.19415905]
[1765015754652,0.4884,3029.0,3028.9,11.19415905]
[1765015754965,0.4884,3029.0,3028.9,11.06202309]
[1765015755959,0.9529,3029.0,3028.9,11.06202309]
[1765015756144,0.9529,3029.0,3028.9,8.65536364]
[1765015756560,0.9529,3029.0,3028.9,9.38095775]
[1765015756855,0.4884,3029.0,3028.9,9.38095775]
[1765015757368,0.9529,3029.0,3028.9,9.38095775]
[1765015759494,0.4884,3029.0,3028.9,5.54095775]
[1765015759850,0.4884,3029.0,3028.9,5.01995775]
[1765015760052,0.4884,3029.0,3028.9,5.54095775]
[1765015761410,0.9529,3029.0,3028.9,5.54095775]
[1765015761809,0.4884,3029.0,3028.9,5.54095775]
[1765015762281,0.9529,3029.0,3028.9,5.54095775]
[1765015762480,0.9529,3029.0,3028.9,11.42583574]
[1765015765808,0.002,3029.0,3028.9,11.42583574]
[1765015765991,0.002,3029.0,3028.9,13.31936554]
[1765015766875,0.002,3029.0,3028.9,26.49243653]
[1765015767099,0.002,3029.0,3028.9,42.53392353]
[1765015767307,0.002,3029.0,3028.9,41.44878553]
[1765015768018,0.002,3029.0,3028.9,23.77124753]
[1765015768187,0.002,3029.0,3028.9,41.44878553]
[1765015768383,0.002,3029.0,3028.9,40.57714353]
[1765015769114,0.002,3029.1,3029.0,20.05387311]
[1765015769308,0.002,3029.1,3029.0,20.40903864]
[1765015770918,0.4884,3029.1,3029.0,14.61389228]
[1765015771117,0.002,3029.1,3029.0,14.61389228]
[1765015771314,0.002,3029.1,3029.0,11.42572675]
[1765015775833,0.002,3029.1,3029.0,11.74722675]
[1765015782011,0.002,3029.1,3029.0,22.43750875]
[1765015782220,0.002,3029.1,3029.0,25.00947674]
[1765015784311,0.002,3029.1,3029.0,24.68797674]
[1765015785437,0.002,3029.1,3029.0,25.00947674]
[1765015786238,0.002,3029.1,3029.0,28.84947674]
[1765015787936,0.002,3029.4,3029.0,31.58460949]
[1765015788240,0.002,3029.4,3029.3,11.2258998]
[1765015791741,0.002,3029.4,3029.3,17.11077779]
[1765015792058,0.002,3029.4,3029.3,20.95077779]
[1765015792863,0.4822,3029.9,3029.3,20.95077779]
[1765015792864,0.002,3030.9,3029.6,0.3215]
[1765015793051,0.1891,3030.5,3030.3,5.88487799]
[1765015793247,0.1891,3030.5,3030.4,0.521]
[1765015793762,0.6556,3030.5,3030.4,3.8208944]
[1765015794084,1.1378,3030.5,3030.4,4.54648851]
[1765015794361,1.1378,3030.5,3030.4,10.4313665]
[1765015797060,1.1398,3030.5,3030.4,10.4313665]
[1765015801774,1.1398,3030.5,3030.4,9.70577239]
[1765015802361,1.1398,3030.5,3030.4,3.8208944]
[1765015802558,1.1398,3030.5,3030.4,9.70577239]
[1765015804279,1.1398,3030.5,3030.4,9.18477239]
[1765015804468,1.1398,3030.5,3030.4,9.70577239]
[1765015806305,1.1398,3030.5,3030.3,3.3000033]
[1765015806632,0.4822,3030.4,3030.3,3.3000033]
[1765015806782,0.9487,3030.4,3030.3,3.3000033]
[1765015808313,0.9487,3030.4,3030.2,9.70598665]
[1765015808489,0.9487,3030.3,3030.2,9.70598665]
[1765015808687,0.9487,3030.3,3030.2,0.521]
[1765015809411,0.9487,3030.3,3030.1,3.30018327]
[1765015809614,0.9669,3030.2,3030.1,3.30018327]
[1765015809800,0.9669,3030.2,3030.0,13.54617626]
[1765015810005,0.9532,3030.1,3030.0,9.70617626]
[1765015811114,0.9532,3030.1,3030.0,3.30033003]
[1765015811415,0.9532,3030.1,3030.0,9.18520802]
[1765015812423,0.6606,3030.5,3030.0,13.55969042]
[1765015812629,0.6606,3030.5,3030.3,5.88487799]
[1765015812831,0.4695,3030.4,3030.3,5.88487799]
[1765015813044,0.9669,3030.4,3030.3,5.88487799]
[1765015813446,0.9669,3030.4,3030.3,9.18488129]
[1765015814349,0.1911,3030.5,3030.3,9.18488129]
[1765015814525,0.002,3030.5,3030.3,9.18488129]
[1765015815046,0.4974,3030.4,3030.3,9.18488129]
[1765015815353,0.4974,3030.4,3030.1,6.87771303]
[1765015815520,0.4715,3030.5,3029.9,4.83283504]
[1765015815521,0.4974,3030.2,3030.0,0.72559411]
[1765015815719,0.4695,3030.3,3030.0,0.72559411]
[1765015815951,0.4974,3030.1,3030.0,0.72559411]
[1765015816247,0.4974,3030.1,3029.9,7.14043569]
[1765015816419,0.9622,3030.0,3029.9,7.14043569]
[1765015816620,0.9622,3030.0,3029.9,3.30043569]
[1765015817718,0.9622,3030.0,3029.8,3.30154789]
[1765015817951,1.1469,3029.9,3029.8,3.30154789]
[1765015819023,1.1469,3029.9,3029.8,0.001]
[1765015824174,0.6774,3029.9,3029.8,0.001]
[1765015824675,1.1469,3029.9,3029.8,0.001]
[1765015826069,0.18,3030.2,3029.8,6.2051125]
[1765015826278,0.18,3030.2,3029.9,3.30043895]
[1765015826477,0.4695,3030.1,3029.9,3.30043895]